[Event "Titled Tuesday Blitz May 2 Early 2023"]
[White "Allahverdiyeva, Ayan"]
[Black "Ibadov, Dashgyn"]
[WhiteFideId "13412590"]
[BlackFideId "24107514"]
[WhiteElo "1980"]
[BlackElo "2208"]
[Result "0-1"]
[Round "04"]
[TimeControl "180+2"]
[Date "2023.05.02"]
[WhiteClock "0:00:03"]
[BlackClock "0:00:33"]

1. e4 {[%clk 0:03:00]}  e5 {[%clk 0:02:55]} 2. Nf3 {[%clk 0:02:59]}  Nc6 {[%clk 0:02:49]} 3. Bb5 {[%clk 0:02:59]}  a6 {[%clk 0:02:49]} 4. Ba4 {[%clk 0:02:59]}  Nf6 {[%clk 0:02:49]} 5. O-O {[%clk 0:02:58]}  b5 {[%clk 0:02:49]} 6. Bb3 {[%clk 0:02:57]}  Bc5 {[%clk 0:02:50]} 7. a4 {[%clk 0:02:57]}  Rb8 {[%clk 0:02:48]} 8. c3 {[%clk 0:02:54]}  d6 {[%clk 0:02:48]} 9. d4 {[%clk 0:02:53]}  Bb6 {[%clk 0:02:48]} 10. a5 {[%clk 0:02:52]}  Ba7 {[%clk 0:02:48]} 11. h3 {[%clk 0:02:41]}  Bb7 {[%clk 0:02:29]} 12. Be3 {[%clk 0:02:33]}  Nxe4 {[%clk 0:02:21]} 13. d5 {[%clk 0:02:33]}  Bxe3 {[%clk 0:02:21]} 14. dxc6 {[%clk 0:02:33]}  Nxf2 {[%clk 0:02:21]} 15. Rxf2 {[%clk 0:02:14]}  Bxf2+ {[%clk 0:02:13]} 16. Kxf2 {[%clk 0:02:08]}  Bxc6 {[%clk 0:02:14]} 17. Na3 {[%clk 0:01:54]}  O-O {[%clk 0:02:13]} 18. Nc2 {[%clk 0:01:54]}  Kh8 {[%clk 0:01:54]} 19. Bd5 {[%clk 0:01:52]}  Bd7 {[%clk 0:01:52]} 20. Qd2 {[%clk 0:01:47]}  c6 {[%clk 0:01:50]} 21. Bb3 {[%clk 0:01:41]}  e4 {[%clk 0:01:43]} 22. Ng5 {[%clk 0:01:16]}  d5 {[%clk 0:01:43]} 23. Qf4 {[%clk 0:01:15]}  Qf6 {[%clk 0:01:31]} 24. Qxf6 {[%clk 0:00:51]}  gxf6 {[%clk 0:01:32]} 25. Nxh7 {[%clk 0:00:32]}  Kxh7 {[%clk 0:01:33]} 26. g4 {[%clk 0:00:27]}  Be6 {[%clk 0:01:28]} 27. Ne3 {[%clk 0:00:25]}  Kg6 {[%clk 0:01:25]} 28. h4 {[%clk 0:00:25]}  Rbd8 {[%clk 0:01:20]} 29. Rd1 {[%clk 0:00:21]}  f5 {[%clk 0:01:08]} 30. gxf5+ {[%clk 0:00:18]}  Bxf5 {[%clk 0:01:09]} 31. Kg3 {[%clk 0:00:17]}  Be6 {[%clk 0:01:00]} 32. Kf4 {[%clk 0:00:17]}  Kf6 {[%clk 0:00:58]} 33. h5 {[%clk 0:00:09]}  Rh8 {[%clk 0:00:57]} 34. Rh1 {[%clk 0:00:09]}  c5 {[%clk 0:00:57]} 35. Bd1 {[%clk 0:00:08]}  d4 {[%clk 0:00:55]} 36. cxd4 {[%clk 0:00:08]}  cxd4 {[%clk 0:00:56]} 37. Ng4+ {[%clk 0:00:09]}  Bxg4 {[%clk 0:00:55]} 38. Bxg4 {[%clk 0:00:09]}  e3 {[%clk 0:00:55]} 39. Bf3 {[%clk 0:00:07]}  Rhe8 {[%clk 0:00:37]} 40. h6 {[%clk 0:00:03]}  d3 {[%clk 0:00:36]} 41. h7 {[%clk 0:00:03]}  e2 {[%clk 0:00:33]} 0-1


[Site "https://www.chess.com"]

[Event "Titled Tuesday Blitz May 2 Early 2023"]
[White "Womacka, Mathias"]
[Black "Matlakov, Maxim"]
[WhiteFideId "4611390"]
[BlackFideId "4168003"]
[WhiteElo "2377"]
[BlackElo "2666"]
[Result "0-1"]
[Round "04"]
[TimeControl "180+2"]
[Date "2023.05.02"]
[WhiteClock "0:00:28"]
[BlackClock "0:00:45"]

1. e4 {[%clk 0:03:00]}  c5 {[%clk 0:03:00]} 2. Nf3 {[%clk 0:02:59]}  e6 {[%clk 0:03:00]} 3. d4 {[%clk 0:02:57]}  cxd4 {[%clk 0:03:01]} 4. Nxd4 {[%clk 0:02:58]}  Nc6 {[%clk 0:03:01]} 5. Nc3 {[%clk 0:02:57]}  Qc7 {[%clk 0:03:01]} 6. Be3 {[%clk 0:02:54]}  a6 {[%clk 0:03:01]} 7. Bd3 {[%clk 0:02:53]}  Nf6 {[%clk 0:02:57]} 8. h3 {[%clk 0:02:51]}  b5 {[%clk 0:02:55]} 9. Nxc6 {[%clk 0:02:50]}  dxc6 {[%clk 0:02:51]} 10. f4 {[%clk 0:02:41]}  e5 {[%clk 0:02:48]} 11. f5 {[%clk 0:02:38]}  Bb7 {[%clk 0:02:40]} 12. a4 {[%clk 0:02:37]}  b4 {[%clk 0:02:36]} 13. Nb1 {[%clk 0:02:29]}  c5 {[%clk 0:02:29]} 14. Nd2 {[%clk 0:02:27]}  c4 {[%clk 0:02:29]} 15. Nxc4 {[%clk 0:02:26]}  Nxe4 {[%clk 0:02:25]} 16. O-O {[%clk 0:02:25]}  Bc5 {[%clk 0:02:19]} 17. Qe1 {[%clk 0:02:24]}  O-O {[%clk 0:02:15]} 18. Bxc5 {[%clk 0:02:06]}  Qxc5+ {[%clk 0:02:08]} 19. Kh2 {[%clk 0:02:06]}  Bd5 {[%clk 0:01:15]} 20. Nxe5 {[%clk 0:01:32]}  Rfe8 {[%clk 0:01:13]} 21. Ng4 {[%clk 0:01:10]}  Qc7+ {[%clk 0:01:08]} 22. Kg1 {[%clk 0:01:07]}  Ng3 {[%clk 0:01:03]} 23. Qxb4 {[%clk 0:01:04]}  h5 {[%clk 0:00:55]} 24. Nh2 {[%clk 0:00:48]}  Ne2+ {[%clk 0:00:48]} 25. Bxe2 {[%clk 0:00:28]}  Rxe2 {[%clk 0:00:49]} 26. Rf2 {[%clk 0:00:28]}  Rxf2 {[%clk 0:00:47]} 27. Kxf2 {[%clk 0:00:28]}  Qxc2+ {[%clk 0:00:45]} 0-1


[Site "https://www.chess.com"]

[Event "Titled Tuesday Blitz May 2 Early 2023"]
[White "Dehtiarov, Roman"]
[Black "Golubev, Mikhail"]
[WhiteFideId "14186640"]
[BlackFideId "14100983"]
[WhiteElo "2189"]
[BlackElo "2374"]
[Result "1-0"]
[Round "04"]
[TimeControl "180+2"]
[Date "2023.05.02"]
[WhiteClock "0:01:59"]
[BlackClock "0:01:16"]

1. c4 {[%clk 0:03:00]}  g6 {[%clk 0:02:59]} 2. Nc3 {[%clk 0:03:00]}  Bg7 {[%clk 0:02:59]} 3. g3 {[%clk 0:03:00]}  e5 {[%clk 0:02:59]} 4. Bg2 {[%clk 0:03:00]}  Nc6 {[%clk 0:02:59]} 5. e4 {[%clk 0:03:01]}  Nd4 {[%clk 0:02:58]} 6. d3 {[%clk 0:02:59]}  d6 {[%clk 0:02:58]} 7. Be3 {[%clk 0:03:00]}  Ne7 {[%clk 0:02:57]} 8. h3 {[%clk 0:02:58]}  O-O {[%clk 0:02:56]} 9. Nge2 {[%clk 0:02:58]}  f5 {[%clk 0:02:53]} 10. O-O {[%clk 0:02:54]}  Nec6 {[%clk 0:02:50]} 11. Nd5 {[%clk 0:02:53]}  Be6 {[%clk 0:02:40]} 12. Bxd4 {[%clk 0:02:52]}  exd4 {[%clk 0:02:33]} 13. exf5 {[%clk 0:02:49]}  Bxf5 {[%clk 0:02:29]} 14. g4 {[%clk 0:02:50]}  Be6 {[%clk 0:02:28]} 15. Ng3 {[%clk 0:02:46]}  Bxd5 {[%clk 0:02:07]} 16. Bxd5+ {[%clk 0:02:42]}  Kh8 {[%clk 0:02:06]} 17. f4 {[%clk 0:02:29]}  Qh4 {[%clk 0:02:05]} 18. Kg2 {[%clk 0:02:28]}  Rae8 {[%clk 0:02:04]} 19. Ne4 {[%clk 0:02:10]}  Ne7 {[%clk 0:01:51]} 20. Qe1 {[%clk 0:02:06]}  Qxe1 {[%clk 0:01:35]} 21. Raxe1 {[%clk 0:02:07]}  c6 {[%clk 0:01:23]} 22. Nxd6 {[%clk 0:01:59]}  cxd5 {[%clk 0:01:18]} 23. Nxe8 {[%clk 0:01:58]}  Rxe8 {[%clk 0:01:16]} 24. cxd5 {[%clk 0:01:59]} 1-0


[Site "https://www.chess.com"]

[Event "Titled Tuesday Blitz May 2 Early 2023"]
[White "Rangel, Daniel"]
[Black "Preotu, Razvan"]
[WhiteFideId "2124475"]
[BlackFideId "2613280"]
[WhiteElo "2256"]
[BlackElo "2407"]
[Result "0-1"]
[Round "04"]
[TimeControl "180+2"]
[Date "2023.05.02"]
[WhiteClock "0:01:12"]
[BlackClock "0:00:18"]

1. d4 {[%clk 0:02:59]}  Nf6 {[%clk 0:02:58]} 2. Nf3 {[%clk 0:02:59]}  g6 {[%clk 0:02:59]} 3. e3 {[%clk 0:02:57]}  Bg7 {[%clk 0:02:59]} 4. Be2 {[%clk 0:02:58]}  O-O {[%clk 0:02:59]} 5. O-O {[%clk 0:02:59]}  c5 {[%clk 0:02:56]} 6. b3 {[%clk 0:02:59]}  cxd4 {[%clk 0:02:55]} 7. exd4 {[%clk 0:03:00]}  d5 {[%clk 0:02:56]} 8. Ba3 {[%clk 0:02:59]}  Nc6 {[%clk 0:02:56]} 9. Nbd2 {[%clk 0:02:59]}  Bf5 {[%clk 0:02:40]} 10. c3 {[%clk 0:02:52]}  Rc8 {[%clk 0:02:28]} 11. Re1 {[%clk 0:02:52]}  Re8 {[%clk 0:02:18]} 12. Bf1 {[%clk 0:02:50]}  Ne4 {[%clk 0:01:33]} 13. Nxe4 {[%clk 0:02:37]}  Bxe4 {[%clk 0:01:34]} 14. Bd3 {[%clk 0:02:30]}  Bxf3 {[%clk 0:01:30]} 15. Qxf3 {[%clk 0:02:29]}  e5 {[%clk 0:01:31]} 16. dxe5 {[%clk 0:02:26]}  Nxe5 {[%clk 0:01:32]} 17. Qd1 {[%clk 0:02:23]}  Nxd3 {[%clk 0:01:05]} 18. Qxd3 {[%clk 0:02:19]}  Rxc3 {[%clk 0:00:51]} 19. Rxe8+ {[%clk 0:02:00]}  Qxe8 {[%clk 0:00:52]} 20. Qxd5 {[%clk 0:02:00]}  Rxb3 {[%clk 0:00:50]} 21. Rd1 {[%clk 0:01:47]}  Rxa3 {[%clk 0:00:48]} 22. g3 {[%clk 0:01:44]}  Qc6 {[%clk 0:00:37]} 23. Qg5 {[%clk 0:01:35]}  h6 {[%clk 0:00:23]} 24. Qd2 {[%clk 0:01:28]}  Rc3 {[%clk 0:00:22]} 25. h4 {[%clk 0:01:26]}  b5 {[%clk 0:00:17]} 26. Qe2 {[%clk 0:01:20]}  Rc2 {[%clk 0:00:16]} 27. Qe7 {[%clk 0:01:18]}  Qf3 {[%clk 0:00:14]} 28. Rf1 {[%clk 0:01:18]}  Kh7 {[%clk 0:00:12]} 29. Qxa7 {[%clk 0:01:15]}  Rd2 {[%clk 0:00:10]} 30. Qa5 {[%clk 0:01:08]}  Rxf2 {[%clk 0:00:08]} 31. Rxf2 {[%clk 0:01:04]}  Bd4 {[%clk 0:00:09]} 32. Qd2 {[%clk 0:01:01]}  Qxg3+ {[%clk 0:00:08]} 33. Kf1 {[%clk 0:01:01]}  Qxf2+ {[%clk 0:00:09]} 34. Qxf2 {[%clk 0:01:01]}  Bxf2 {[%clk 0:00:10]} 35. Kxf2 {[%clk 0:01:02]}  g5 {[%clk 0:00:10]} 36. Ke3 {[%clk 0:01:03]}  gxh4 {[%clk 0:00:10]} 37. Kf4 {[%clk 0:01:03]}  Kg6 {[%clk 0:00:11]} 38. Kg4 {[%clk 0:01:04]}  Kf6 {[%clk 0:00:09]} 39. Kxh4 {[%clk 0:01:05]}  Ke5 {[%clk 0:00:10]} 40. Kh5 {[%clk 0:01:06]}  f5 {[%clk 0:00:10]} 41. Kxh6 {[%clk 0:01:07]}  f4 {[%clk 0:00:11]} 42. Kg5 {[%clk 0:01:08]}  Ke4 {[%clk 0:00:11]} 43. Kg4 {[%clk 0:01:09]}  f3 {[%clk 0:00:12]} 44. Kg3 {[%clk 0:01:09]}  Ke3 {[%clk 0:00:12]} 45. Kh2 {[%clk 0:01:10]}  f2 {[%clk 0:00:13]} 46. Kg2 {[%clk 0:01:10]}  Ke2 {[%clk 0:00:13]} 47. a4 {[%clk 0:01:11]}  f1=Q+ {[%clk 0:00:14]} 48. Kg3 {[%clk 0:01:11]}  bxa4 {[%clk 0:00:15]} 49. Kh4 {[%clk 0:01:09]}  a3 {[%clk 0:00:15]} 50. Kh5 {[%clk 0:01:10]}  a2 {[%clk 0:00:16]} 51. Kh6 {[%clk 0:01:11]}  a1=Q {[%clk 0:00:17]} 52. Kh7 {[%clk 0:01:11]}  Qaf6 {[%clk 0:00:17]} 53. Kg8 {[%clk 0:01:11]}  Qg2+ {[%clk 0:00:17]} 54. Kh7 {[%clk 0:01:12]}  Qh4# {[%clk 0:00:18]} 0-1


[Site "https://www.chess.com"]

[Event "Titled Tuesday Blitz May 2 Early 2023"]
[White "Garakov, Mikhael"]
[Black "Kucuksari, Kaan"]
[WhiteFideId "4169034"]
[BlackFideId "6380166"]
[WhiteElo "2347"]
[BlackElo "2364"]
[Result "0-1"]
[Round "04"]
[TimeControl "180+2"]
[Date "2023.05.02"]
[WhiteClock "0:00:22"]
[BlackClock "0:01:59"]

1. e4 {[%clk 0:03:00]}  c5 {[%clk 0:02:58]} 2. Nf3 {[%clk 0:03:00]}  Nc6 {[%clk 0:02:59]} 3. Bb5 {[%clk 0:03:00]}  g6 {[%clk 0:02:58]} 4. O-O {[%clk 0:02:59]}  Bg7 {[%clk 0:02:58]} 5. Nc3 {[%clk 0:02:59]}  Nd4 {[%clk 0:02:58]} 6. Ba4 {[%clk 0:02:57]}  a6 {[%clk 0:02:45]} 7. Nxd4 {[%clk 0:02:44]}  cxd4 {[%clk 0:02:46]} 8. Ne2 {[%clk 0:02:43]}  b5 {[%clk 0:02:47]} 9. Bb3 {[%clk 0:02:43]}  Bb7 {[%clk 0:02:48]} 10. d3 {[%clk 0:02:43]}  e6 {[%clk 0:02:48]} 11. c3 {[%clk 0:02:35]}  dxc3 {[%clk 0:02:48]} 12. bxc3 {[%clk 0:02:35]}  Ne7 {[%clk 0:02:49]} 13. Ba3 {[%clk 0:02:28]}  O-O {[%clk 0:02:49]} 14. Rc1 {[%clk 0:02:23]}  a5 {[%clk 0:02:49]} 15. Bd6 {[%clk 0:02:10]}  Ra6 {[%clk 0:02:48]} 16. e5 {[%clk 0:01:59]}  Rxd6 {[%clk 0:02:39]} 17. exd6 {[%clk 0:01:59]}  Nf5 {[%clk 0:02:40]} 18. c4 {[%clk 0:01:32]}  Nxd6 {[%clk 0:02:38]} 19. cxb5 {[%clk 0:01:26]}  Nxb5 {[%clk 0:02:39]} 20. d4 {[%clk 0:01:26]}  Qg5 {[%clk 0:02:36]} 21. d5 {[%clk 0:01:22]}  a4 {[%clk 0:02:33]} 22. Bc4 {[%clk 0:01:15]}  Na3 {[%clk 0:02:31]} 23. Ng3 {[%clk 0:01:09]}  Bb2 {[%clk 0:02:24]} 24. Rc2 {[%clk 0:00:59]}  Nxc2 {[%clk 0:02:20]} 25. Qxc2 {[%clk 0:01:00]}  Be5 {[%clk 0:02:16]} 26. Qxa4 {[%clk 0:00:57]}  exd5 {[%clk 0:02:15]} 27. Qxd7 {[%clk 0:00:54]}  dxc4 {[%clk 0:02:10]} 28. Qxb7 {[%clk 0:00:54]}  c3 {[%clk 0:02:10]} 29. Qc6 {[%clk 0:00:52]}  Qd2 {[%clk 0:02:07]} 30. Ne4 {[%clk 0:00:51]}  Qd3 {[%clk 0:02:07]} 31. a4 {[%clk 0:00:32]}  c2 {[%clk 0:02:06]} 32. a5 {[%clk 0:00:32]}  Bb2 {[%clk 0:02:00]} 33. Nc5 {[%clk 0:00:22]}  Qxf1+ {[%clk 0:01:59]} 0-1


[Site "https://www.chess.com"]

[Event "Titled Tuesday Blitz May 2 Early 2023"]
[White "Bouget, Alexandre"]
[Black "Dimitrov, Atanas"]
[WhiteFideId "681318"]
[BlackFideId "2901315"]
[WhiteElo "2182"]
[BlackElo "2269"]
[Result "0-1"]
[Round "04"]
[TimeControl "180+2"]
[Date "2023.05.02"]
[WhiteClock "0:00:21"]
[BlackClock "0:01:10"]

1. d4 {[%clk 0:03:00]}  Nf6 {[%clk 0:02:59]} 2. c4 {[%clk 0:03:00]}  g6 {[%clk 0:02:59]} 3. Nc3 {[%clk 0:03:00]}  d5 {[%clk 0:02:59]} 4. cxd5 {[%clk 0:03:01]}  Nxd5 {[%clk 0:03:00]} 5. e4 {[%clk 0:03:01]}  Nxc3 {[%clk 0:03:01]} 6. bxc3 {[%clk 0:03:01]}  Bg7 {[%clk 0:03:01]} 7. Ba3 {[%clk 0:03:02]}  O-O {[%clk 0:03:02]} 8. Nf3 {[%clk 0:03:00]}  b6 {[%clk 0:03:02]} 9. Qb3 {[%clk 0:02:59]}  Bb7 {[%clk 0:03:02]} 10. Bd3 {[%clk 0:02:59]}  Nd7 {[%clk 0:02:51]} 11. Rd1 {[%clk 0:02:56]}  Nf6 {[%clk 0:02:40]} 12. Qb1 {[%clk 0:02:44]}  Re8 {[%clk 0:02:33]} 13. O-O {[%clk 0:02:39]}  Qc8 {[%clk 0:02:31]} 14. c4 {[%clk 0:02:29]}  Nh5 {[%clk 0:02:18]} 15. e5 {[%clk 0:02:22]}  Nf4 {[%clk 0:02:14]} 16. Be4 {[%clk 0:02:21]}  Qg4 {[%clk 0:02:12]} 17. Ne1 {[%clk 0:01:47]}  Bxe4 {[%clk 0:02:07]} 18. Qb3 {[%clk 0:01:37]}  Bxg2 {[%clk 0:01:46]} 19. Qg3 {[%clk 0:01:30]}  Qxd1 {[%clk 0:01:36]} 20. Qxf4 {[%clk 0:00:59]}  Bxf1 {[%clk 0:01:36]} 21. Kxf1 {[%clk 0:00:58]}  e6 {[%clk 0:01:35]} 22. Kg2 {[%clk 0:00:56]}  c5 {[%clk 0:01:27]} 23. Nf3 {[%clk 0:00:55]}  cxd4 {[%clk 0:01:26]} 24. Ng5 {[%clk 0:00:54]}  Rf8 {[%clk 0:01:21]} 25. Ne4 {[%clk 0:00:42]}  Qh5 {[%clk 0:01:17]} 26. Nf6+ {[%clk 0:00:20]}  Bxf6 {[%clk 0:01:16]} 27. exf6 {[%clk 0:00:21]}  d3 {[%clk 0:01:10]} 0-1


[Site "https://www.chess.com"]

[Event "Titled Tuesday Blitz May 2 Early 2023"]
[White "Bashkansky, Ethan"]
[Black "Vitenberg, Noam Aviv"]
[WhiteFideId "2071533"]
[BlackFideId "1532138"]
[WhiteElo "2101"]
[BlackElo "2236"]
[Result "1-0"]
[Round "04"]
[TimeControl "180+2"]
[Date "2023.05.02"]
[WhiteClock "0:00:17"]
[BlackClock "0:00:01"]

1. d4 {[%clk 0:03:00]}  a6 {[%clk 0:02:54]} 2. g3 {[%clk 0:02:57]}  e6 {[%clk 0:02:46]} 3. Bg2 {[%clk 0:02:57]}  c5 {[%clk 0:02:45]} 4. c3 {[%clk 0:02:53]}  Nc6 {[%clk 0:02:42]} 5. Nf3 {[%clk 0:02:45]}  b5 {[%clk 0:02:41]} 6. O-O {[%clk 0:02:43]}  Bb7 {[%clk 0:02:41]} 7. Ne5 {[%clk 0:02:20]}  Qb6 {[%clk 0:02:27]} 8. Nxd7 {[%clk 0:01:53]}  Qc7 {[%clk 0:02:18]} 9. Nxf8 {[%clk 0:01:49]}  Kxf8 {[%clk 0:02:18]} 10. Bf4 {[%clk 0:01:37]}  Qe7 {[%clk 0:02:09]} 11. dxc5 {[%clk 0:01:37]}  e5 {[%clk 0:02:01]} 12. Be3 {[%clk 0:01:29]}  Rd8 {[%clk 0:02:00]} 13. Qc2 {[%clk 0:01:23]}  Nf6 {[%clk 0:01:59]} 14. a4 {[%clk 0:01:19]}  b4 {[%clk 0:01:57]} 15. Nd2 {[%clk 0:01:12]}  Ng4 {[%clk 0:01:56]} 16. Qe4 {[%clk 0:01:06]}  h5 {[%clk 0:01:49]} 17. h3 {[%clk 0:00:59]}  Na5 {[%clk 0:01:14]} 18. Qxb4 {[%clk 0:00:27]}  Bxg2 {[%clk 0:01:11]} 19. Kxg2 {[%clk 0:00:22]}  Nxe3+ {[%clk 0:01:05]} 20. fxe3 {[%clk 0:00:23]}  Rxd2 {[%clk 0:00:51]} 21. Qxa5 {[%clk 0:00:21]}  Rxe2+ {[%clk 0:00:51]} 22. Rf2 {[%clk 0:00:21]}  Rxf2+ {[%clk 0:00:32]} 23. Kxf2 {[%clk 0:00:22]}  Rh6 {[%clk 0:00:32]} 24. Rd1 {[%clk 0:00:17]}  Kg8 {[%clk 0:00:09]} 25. Qd8+ {[%clk 0:00:16]}  Qxd8 {[%clk 0:00:10]} 26. Rxd8+ {[%clk 0:00:17]}  Kh7 {[%clk 0:00:10]} 27. Rd6 {[%clk 0:00:18]}  f6 {[%clk 0:00:04]} 28. c6 {[%clk 0:00:18]}  h4 {[%clk 0:00:03]} 29. c7 {[%clk 0:00:17]}  hxg3+ {[%clk 0:00:03]} 30. Kxg3 {[%clk 0:00:18]}  f5 {[%clk 0:00:01]} 31. Rxh6+ {[%clk 0:00:17]} 1-0


[Site "https://www.chess.com"]

[Event "Titled Tuesday Blitz May 2 Early 2023"]
[White "Topalov, Aleksandar"]
[Black "Iskusnyh, Sergei"]
[WhiteFideId "925659"]
[BlackFideId "4120027"]
[WhiteElo "2151"]
[BlackElo "2492"]
[Result "0-1"]
[Round "04"]
[TimeControl "180+2"]
[Date "2023.05.02"]
[WhiteClock "0:00:02"]
[BlackClock "0:00:39"]

1. b3 {[%clk 0:03:00]}  e5 {[%clk 0:02:57]} 2. Bb2 {[%clk 0:03:00]}  Nc6 {[%clk 0:02:56]} 3. c4 {[%clk 0:03:00]}  g6 {[%clk 0:02:55]} 4. Nc3 {[%clk 0:02:59]}  Bg7 {[%clk 0:02:54]} 5. g3 {[%clk 0:02:59]}  d6 {[%clk 0:02:53]} 6. Bg2 {[%clk 0:02:59]}  f5 {[%clk 0:02:52]} 7. e3 {[%clk 0:02:59]}  Nf6 {[%clk 0:02:48]} 8. a3 {[%clk 0:02:59]}  O-O {[%clk 0:02:47]} 9. Nge2 {[%clk 0:02:59]}  e4 {[%clk 0:02:45]} 10. d3 {[%clk 0:02:58]}  Ne5 {[%clk 0:02:23]} 11. dxe4 {[%clk 0:02:33]}  fxe4 {[%clk 0:02:22]} 12. Nxe4 {[%clk 0:02:14]}  Nxe4 {[%clk 0:02:19]} 13. Bxe4 {[%clk 0:02:14]}  Bg4 {[%clk 0:02:12]} 14. Bxe5 {[%clk 0:02:05]}  Bxe5 {[%clk 0:02:10]} 15. Rc1 {[%clk 0:01:50]}  Bb2 {[%clk 0:02:07]} 16. Rc2 {[%clk 0:01:35]}  Bxa3 {[%clk 0:02:06]} 17. h3 {[%clk 0:01:33]}  Bb4+ {[%clk 0:02:01]} 18. Kf1 {[%clk 0:01:33]}  Bd7 {[%clk 0:01:59]} 19. Bxb7 {[%clk 0:01:29]}  Qf6 {[%clk 0:01:52]} 20. Bd5+ {[%clk 0:00:40]}  Kh8 {[%clk 0:01:48]} 21. Qd4 {[%clk 0:00:38]}  Rae8 {[%clk 0:01:40]} 22. Qxf6+ {[%clk 0:00:33]}  Rxf6 {[%clk 0:01:40]} 23. Kg2 {[%clk 0:00:32]}  c6 {[%clk 0:01:30]} 24. Bf3 {[%clk 0:00:28]}  Ref8 {[%clk 0:01:30]} 25. Nd4 {[%clk 0:00:14]}  c5 {[%clk 0:01:27]} 26. Bc6 {[%clk 0:00:12]}  cxd4 {[%clk 0:01:09]} 27. Bxd7 {[%clk 0:00:12]}  d3 {[%clk 0:01:09]} 28. Ra2 {[%clk 0:00:08]}  d2 {[%clk 0:01:01]} 29. f4 {[%clk 0:00:09]}  a5 {[%clk 0:01:00]} 30. Rd1 {[%clk 0:00:07]}  R6f7 {[%clk 0:00:59]} 31. Bc6 {[%clk 0:00:06]}  Re7 {[%clk 0:00:54]} 32. Kf3 {[%clk 0:00:06]}  Kg7 {[%clk 0:00:49]} 33. e4 {[%clk 0:00:04]}  g5 {[%clk 0:00:47]} 34. Bd5 {[%clk 0:00:04]}  gxf4 {[%clk 0:00:46]} 35. gxf4 {[%clk 0:00:04]}  Kf6 {[%clk 0:00:45]} 36. Rdxd2 {[%clk 0:00:04]}  Bxd2 {[%clk 0:00:44]} 37. Rxd2 {[%clk 0:00:05]}  Rb8 {[%clk 0:00:43]} 38. Rd3 {[%clk 0:00:02]}  Rg7 {[%clk 0:00:39]} 0-1


[Site "https://www.chess.com"]

[Event "Titled Tuesday Blitz May 2 Early 2023"]
[White "Spitzl, Vinzent"]
[Black "Gatterer, Florian"]
[WhiteFideId "12901253"]
[BlackFideId "811688"]
[WhiteElo "2225"]
[BlackElo "2221"]
[Result "1-0"]
[Round "04"]
[TimeControl "180+2"]
[Date "2023.05.02"]
[WhiteClock "0:00:23"]
[BlackClock "0:00:19"]

1. e4 {[%clk 0:02:59]}  c5 {[%clk 0:02:59]} 2. Nf3 {[%clk 0:03:00]}  e6 {[%clk 0:02:58]} 3. d4 {[%clk 0:03:00]}  cxd4 {[%clk 0:02:58]} 4. Nxd4 {[%clk 0:03:01]}  Nf6 {[%clk 0:02:57]} 5. Nc3 {[%clk 0:03:01]}  Nc6 {[%clk 0:02:55]} 6. Ndb5 {[%clk 0:03:02]}  Bc5 {[%clk 0:02:53]} 7. Bf4 {[%clk 0:03:02]}  O-O {[%clk 0:02:52]} 8. Bc7 {[%clk 0:03:02]}  Qe7 {[%clk 0:02:51]} 9. Bd6 {[%clk 0:03:02]}  Bxd6 {[%clk 0:02:51]} 10. Nxd6 {[%clk 0:03:01]}  Ne8 {[%clk 0:02:45]} 11. Nxe8 {[%clk 0:02:56]}  Rxe8 {[%clk 0:02:41]} 12. Be2 {[%clk 0:02:56]}  Qb4 {[%clk 0:02:39]} 13. O-O {[%clk 0:02:50]}  Qxb2 {[%clk 0:02:38]} 14. Nb5 {[%clk 0:02:50]}  Qe5 {[%clk 0:02:33]} 15. Kh1 {[%clk 0:02:29]}  a6 {[%clk 0:02:28]} 16. f4 {[%clk 0:02:28]}  Qb8 {[%clk 0:02:20]} 17. Nd6 {[%clk 0:02:27]}  Rf8 {[%clk 0:02:19]} 18. f5 {[%clk 0:02:24]}  Qa7 {[%clk 0:02:04]} 19. Qe1 {[%clk 0:01:46]}  Qc5 {[%clk 0:02:03]} 20. Rd1 {[%clk 0:01:43]}  Qe5 {[%clk 0:01:57]} 21. Qh4 {[%clk 0:01:31]}  f6 {[%clk 0:01:30]} 22. Bc4 {[%clk 0:01:08]}  Nd4 {[%clk 0:01:25]} 23. c3 {[%clk 0:01:04]}  Qxd6 {[%clk 0:01:18]} 24. Rxd4 {[%clk 0:01:01]}  Qe5 {[%clk 0:01:14]} 25. Qg4 {[%clk 0:00:51]}  b5 {[%clk 0:01:10]} 26. Bb3 {[%clk 0:00:51]}  Kh8 {[%clk 0:01:08]} 27. Rfd1 {[%clk 0:00:49]}  d5 {[%clk 0:01:06]} 28. exd5 {[%clk 0:00:46]}  exf5 {[%clk 0:01:04]} 29. Qh5 {[%clk 0:00:40]}  Qd6 {[%clk 0:01:03]} 30. Rh4 {[%clk 0:00:39]}  h6 {[%clk 0:00:57]} 31. Qg6 {[%clk 0:00:36]}  Bd7 {[%clk 0:00:53]} 32. Rd3 {[%clk 0:00:27]}  f4 {[%clk 0:00:45]} 33. Bc2 {[%clk 0:00:23]}  Be8 {[%clk 0:00:23]} 34. Rxh6+ {[%clk 0:00:23]}  gxh6 {[%clk 0:00:18]} 35. Qxh6+ {[%clk 0:00:24]}  Kg8 {[%clk 0:00:18]} 36. Rg3+ {[%clk 0:00:24]}  Kf7 {[%clk 0:00:19]} 37. Qg7# {[%clk 0:00:23]} 1-0


[Site "https://www.chess.com"]

[Event "Titled Tuesday Blitz May 2 Early 2023"]
[White "Budrewicz, Krzysztof"]
[Black "Fernandez Siles, Luis"]
[WhiteFideId "1127950"]
[BlackFideId "2209420"]
[WhiteElo "2230"]
[BlackElo "2195"]
[Result "1-0"]
[Round "04"]
[TimeControl "180+2"]
[Date "2023.05.02"]
[WhiteClock "0:01:25"]
[BlackClock "0:00:26"]

1. d4 {[%clk 0:03:00]}  Nf6 {[%clk 0:02:59]} 2. c4 {[%clk 0:03:00]}  g6 {[%clk 0:02:59]} 3. Nc3 {[%clk 0:03:00]}  Bg7 {[%clk 0:03:00]} 4. e4 {[%clk 0:03:01]}  d6 {[%clk 0:03:00]} 5. Be2 {[%clk 0:03:01]}  O-O {[%clk 0:03:00]} 6. Bg5 {[%clk 0:03:02]}  c6 {[%clk 0:03:00]} 7. Qd2 {[%clk 0:03:02]}  a6 {[%clk 0:03:00]} 8. a4 {[%clk 0:03:01]}  a5 {[%clk 0:03:00]} 9. h4 {[%clk 0:03:02]}  h5 {[%clk 0:02:59]} 10. Nf3 {[%clk 0:02:59]}  Na6 {[%clk 0:02:59]} 11. Rd1 {[%clk 0:02:58]}  Nb4 {[%clk 0:02:58]} 12. O-O {[%clk 0:02:57]}  Ng4 {[%clk 0:02:35]} 13. Rfe1 {[%clk 0:02:41]}  Qc7 {[%clk 0:02:30]} 14. Bf1 {[%clk 0:02:39]}  e5 {[%clk 0:02:09]} 15. dxe5 {[%clk 0:02:32]}  dxe5 {[%clk 0:02:09]} 16. c5 {[%clk 0:02:26]}  Be6 {[%clk 0:02:03]} 17. Qd6 {[%clk 0:02:26]}  Rac8 {[%clk 0:01:51]} 18. Qxc7 {[%clk 0:02:23]}  Rxc7 {[%clk 0:01:50]} 19. Bd8 {[%clk 0:02:24]}  Rc8 {[%clk 0:01:38]} 20. Bxa5 {[%clk 0:02:24]}  Nc2 {[%clk 0:01:35]} 21. Re2 {[%clk 0:02:23]}  Nd4 {[%clk 0:01:35]} 22. Nxd4 {[%clk 0:02:13]}  exd4 {[%clk 0:01:35]} 23. Nb1 {[%clk 0:02:12]}  Bb3 {[%clk 0:01:25]} 24. Rc1 {[%clk 0:02:07]}  Bxa4 {[%clk 0:01:23]} 25. Na3 {[%clk 0:01:58]}  d3 {[%clk 0:01:18]} 26. Rd2 {[%clk 0:01:54]}  Bh6 {[%clk 0:01:18]} 27. Nc4 {[%clk 0:01:51]}  Bxd2 {[%clk 0:01:17]} 28. Bxd2 {[%clk 0:01:51]}  Bc2 {[%clk 0:01:10]} 29. f3 {[%clk 0:01:50]}  Nf6 {[%clk 0:01:06]} 30. Ne3 {[%clk 0:01:50]}  Rfd8 {[%clk 0:01:02]} 31. Nxc2 {[%clk 0:01:50]}  dxc2 {[%clk 0:01:03]} 32. Rxc2 {[%clk 0:01:50]}  Nd7 {[%clk 0:00:59]} 33. Bg5 {[%clk 0:01:49]}  Re8 {[%clk 0:00:59]} 34. b4 {[%clk 0:01:43]}  f6 {[%clk 0:00:57]} 35. Be3 {[%clk 0:01:36]}  Ne5 {[%clk 0:00:55]} 36. Rb2 {[%clk 0:01:37]}  Red8 {[%clk 0:00:54]} 37. b5 {[%clk 0:01:35]}  Rd1 {[%clk 0:00:54]} 38. bxc6 {[%clk 0:01:32]}  bxc6 {[%clk 0:00:52]} 39. Kf2 {[%clk 0:01:29]}  Nd3+ {[%clk 0:00:49]} 40. Bxd3 {[%clk 0:01:29]}  Rxd3 {[%clk 0:00:50]} 41. Rb7 {[%clk 0:01:28]}  Rdd8 {[%clk 0:00:39]} 42. Bh6 {[%clk 0:01:27]}  Rd2+ {[%clk 0:00:26]} 43. Bxd2 {[%clk 0:01:25]} 1-0


[Site "https://www.chess.com"]